{"text_format":"1","workbook":"xlsx","n_sheets":2,"sheets":["Sheet1","Sheet2"],"not_rendered":{"charts":0,"images":0,"macros":1,"external_links":0,"defined_names":4,"comments":0,"pivot_tables":0},"unopened":[],"bounds":{"document_bytes":16777216,"sheet_cells":100000,"rows_first":2000,"rows_last":500,"rows_between":2000,"halvings":0,"cell_chars":16384,"cell_head_chars":4096},"cells_cut":0,"cells_raw":0,"read":"whole","date_system":"1900"}

{"sheet":"Sheet1","index":0,"n_rows":1304,"n_cols":25,"rows_kept":1304,"cut":false,"hidden":false,"merged":[[5,1,29,1],[5,15,29,15],[30,1,30,15],[4,1,4,15],[9,3,9,6],[8,3,8,6],[9,8,9,14],[10,3,10,14],[11,3,11,14],[29,12,29,14],[57,2,57,4],[58,2,58,4],[59,3,59,4],[61,3,61,5],[61,8,61,14],[5,2,5,4],[6,2,6,4],[7,3,7,4],[25,6,26,8],[28,6,29,8],[31,2,31,4],[32,2,32,4],[33,3,33,4],[48,8,48,9],[48,10,48,14],[49,8,49,9],[49,10,49,14],[50,8,50,9],[50,10,50,14],[45,8,45,9],[45,10,45,14],[46,8,46,9],[46,10,46,14],[47,8,47,9],[47,10,47,14],[35,8,35,14],[80,6,81,8],[20,10,20,14],[21,10,21,14],[22,10,22,14],[23,10,23,14],[72,8,72,9],[72,10,72,14],[73,8,73,9],[73,10,73,14],[74,8,74,9],[74,10,74,14],[65,9,65,10],[69,8,69,9],[69,10,69,14],[70,8,70,9],[70,10,70,14],[71,8,71,9],[71,10,71,14],[51,6,52,8],[54,6,55,8],[24,10,24,14],[24,8,24,9],[12,3,12,4],[12,8,12,10],[26,3,26,4],[29,3,29,4],[25,11,25,14],[27,11,27,14],[18,10,18,14],[12,12,12,14],[19,10,19,14],[95,8,95,9],[95,10,95,14],[96,8,96,9],[96,10,96,14],[97,8,97,9],[97,10,97,14],[83,2,83,4],[84,2,84,4],[35,3,35,5],[13,11,13,13],[13,3,13,4],[39,9,39,10],[43,8,43,9],[43,10,43,14],[44,8,44,9],[44,10,44,14],[87,8,87,14],[91,9,91,10],[75,8,75,9],[75,10,75,14],[76,8,76,9],[76,10,76,14],[77,6,78,8],[85,3,85,4],[87,3,87,5],[124,8,124,9],[124,10,124,14],[125,8,125,9],[125,10,125,14],[126,8,126,9],[126,10,126,14],[121,8,121,9],[121,10,121,14],[122,8,122,9],[122,10,122,14],[123,8,123,9],[123,10,123,14],[109,2,109,4],[110,2,110,4],[111,3,111,4],[113,3,113,5],[113,8,113,14],[117,9,117,10],[101,8,101,9],[101,10,101,14],[102,8,102,9],[102,10,102,14],[103,6,104,8],[106,6,107,8],[98,8,98,9],[98,10,98,14],[99,8,99,9],[99,10,99,14],[100,8,100,9],[100,10,100,14],[147,8,147,9],[147,10,147,14],[148,8,148,9],[148,10,148,14],[149,8,149,9],[149,10,149,14],[135,2,135,4],[136,2,136,4],[137,3,137,4],[139,3,139,5],[139,8,139,14],[143,9,143,10],[127,8,127,9],[127,10,127,14],[128,8,128,9],[128,10,128,14],[129,6,130,8],[132,6,133,8],[161,2,161,4],[162,2,162,4],[163,3,163,4],[165,3,165,5],[165,8,165,14],[169,9,169,10],[153,8,153,9],[153,10,153,14],[154,8,154,9],[154,10,154,14],[155,6,156,8],[158,6,159,8],[150,8,150,9],[150,10,150,14],[151,8,151,9],[151,10,151,14],[152,8,152,9],[152,10,152,14],[179,8,179,9],[179,10,179,14],[180,8,180,9],[180,10,180,14],[181,6,182,8],[184,6,185,8],[176,8,176,9],[176,10,176,14],[177,8,177,9],[177,10,177,14],[178,8,178,9],[178,10,178,14],[173,8,173,9],[173,10,173,14],[174,8,174,9],[174,10,174,14],[175,8,175,9],[175,10,175,14],[202,8,202,9],[202,10,202,14],[203,8,203,9],[203,10,203,14],[204,8,204,9],[204,10,204,14],[199,8,199,9],[199,10,199,14],[200,8,200,9],[200,10,200,14],[201,8,201,9],[201,10,201,14],[187,2,187,4],[188,2,188,4],[189,3,189,4],[191,3,191,5],[191,8,191,14],[195,9,195,10],[225,8,225,9],[225,10,225,14],[226,8,226,9],[226,10,226,14],[227,8,227,9],[227,10,227,14],[213,2,213,4],[214,2,214,4],[215,3,215,4],[217,3,217,5],[217,8,217,14],[221,9,221,10],[205,8,205,9],[205,10,205,14],[206,8,206,9],[206,10,206,14],[207,6,208,8],[210,6,211,8],[239,2,239,4],[240,2,240,4],[241,3,241,4],[243,3,243,5],[243,8,243,14],[247,9,247,10],[231,8,231,9],[231,10,231,14],[232,8,232,9],[232,10,232,14],[233,6,234,8],[236,6,237,8],[228,8,228,9],[228,10,228,14],[229,8,229,9],[229,10,229,14],[230,8,230,9],[230,10,230,14],[257,8,257,9],[257,10,257,14],[258,8,258,9],[258,10,258,14],[259,6,260,8],[262,6,263,8],[254,8,254,9],[254,10,254,14],[255,8,255,9],[255,10,255,14],[256,8,256,9],[256,10,256,14],[251,8,251,9],[251,10,251,14],[252,8,252,9],[252,10,252,14],[253,8,253,9],[253,10,253,14],[280,8,280,9],[280,10,280,14],[281,8,281,9],[281,10,281,14],[282,8,282,9],[282,10,282,14],[277,8,277,9],[277,10,277,14],[278,8,278,9],[278,10,278,14],[279,8,279,9],[279,10,279,14],[265,2,265,4],[266,2,266,4],[267,3,267,4],[269,3,269,5],[269,8,269,14],[273,9,273,10],[303,8,303,9],[303,10,303,14],[304,8,304,9],[304,10,304,14],[305,8,305,9],[305,10,305,14],[291,2,291,4],[292,2,292,4],[293,3,293,4],[295,3,295,5],[295,8,295,14],[299,9,299,10],[283,8,283,9],[283,10,283,14],[284,8,284,9],[284,10,284,14],[285,6,286,8],[288,6,289,8],[317,2,317,4],[318,2,318,4],[319,3,319,4],[321,3,321,5],[321,8,321,14],[325,9,325,10],[309,8,309,9],[309,10,309,14],[310,8,310,9],[310,10,310,14],[311,6,312,8],[314,6,315,8],[306,8,306,9],[306,10,306,14],[307,8,307,9],[307,10,307,14],[308,8,308,9],[308,10,308,14],[335,8,335,9],[335,10,335,14],[336,8,336,9],[336,10,336,14],[337,6,338,8],[340,6,341,8],[332,8,332,9],[332,10,332,14],[333,8,333,9],[333,10,333,14],[334,8,334,9],[334,10,334,14],[329,8,329,9],[329,10,329,14],[330,8,330,9],[330,10,330,14],[331,8,331,9],[331,10,331,14],[358,8,358,9],[358,10,358,14],[359,8,359,9],[359,10,359,14],[360,8,360,9],[360,10,360,14],[355,8,355,9],[355,10,355,14],[356,8,356,9],[356,10,356,14],[357,8,357,9],[357,10,357,14],[343,2,343,4],[344,2,344,4],[345,3,345,4],[347,3,347,5],[347,8,347,14],[351,9,351,10],[381,8,381,9],[381,10,381,14],[382,8,382,9],[382,10,382,14],[383,8,383,9],[383,10,383,14],[369,2,369,4],[370,2,370,4],[371,3,371,4],[373,3,373,5],[373,8,373,14],[377,9,377,10],[361,8,361,9],[361,10,361,14],[362,8,362,9],[362,10,362,14],[363,6,364,8],[366,6,367,8],[395,2,395,4],[396,2,396,4],[397,3,397,4],[399,3,399,5],[399,8,399,14],[403,9,403,10],[387,8,387,9],[387,10,387,14],[388,8,388,9],[388,10,388,14],[389,6,390,8],[392,6,393,8],[384,8,384,9],[384,10,384,14],[385,8,385,9],[385,10,385,14],[386,8,386,9],[386,10,386,14],[413,8,413,9],[413,10,413,14],[414,8,414,9],[414,10,414,14],[415,6,416,8],[418,6,419,8],[410,8,410,9],[410,10,410,14],[411,8,411,9],[411,10,411,14],[412,8,412,9],[412,10,412,14],[407,8,407,9],[407,10,407,14],[408,8,408,9],[408,10,408,14],[409,8,409,9],[409,10,409,14],[436,8,436,9],[436,10,436,14],[437,8,437,9],[437,10,437,14],[438,8,438,9],[438,10,438,14],[433,8,433,9],[433,10,433,14],[434,8,434,9],[434,10,434,14],[435,8,435,9],[435,10,435,14],[421,2,421,4],[422,2,422,4],[423,3,423,4],[425,3,425,5],[425,8,425,14],[429,9,429,10],[459,8,459,9],[459,10,459,14],[460,8,460,9],[460,10,460,14],[461,8,461,9],[461,10,461,14],[447,2,447,4],[448,2,448,4],[449,3,449,4],[451,3,451,5],[451,8,451,14],[455,9,455,10],[439,8,439,9],[439,10,439,14],[440,8,440,9],[440,10,440,14],[441,6,442,8],[444,6,445,8],[473,2,473,4],[474,2,474,4],[475,3,475,4],[477,3,477,5],[477,8,477,14],[481,9,481,10],[465,8,465,9],[465,10,465,14],[466,8,466,9],[466,10,466,14],[467,6,468,8],[470,6,471,8],[462,8,462,9],[462,10,462,14],[463,8,463,9],[463,10,463,14],[464,8,464,9],[464,10,464,14],[491,8,491,9],[491,10,491,14],[492,8,492,9],[492,10,492,14],[493,6,494,8],[496,6,497,8],[488,8,488,9],[488,10,488,14],[489,8,489,9],[489,10,489,14],[490,8,490,9],[490,10,490,14],[485,8,485,9],[485,10,485,14],[486,8,486,9],[486,10,486,14],[487,8,487,9],[487,10,487,14],[514,8,514,9],[514,10,514,14],[515,8,515,9],[515,10,515,14],[516,8,516,9],[516,10,516,14],[511,8,511,9],[511,10,511,14],[512,8,512,9],[512,10,512,14],[513,8,513,9],[513,10,513,14],[499,2,499,4],[500,2,500,4],[501,3,501,4],[503,3,503,5],[503,8,503,14],[507,9,507,10],[537,8,537,9],[537,10,537,14],[538,8,538,9],[538,10,538,14],[539,8,539,9],[539,10,539,14],[525,2,525,4],[526,2,526,4],[527,3,527,4],[529,3,529,5],[529,8,529,14],[533,9,533,10],[517,8,517,9],[517,10,517,14],[518,8,518,9],[518,10,518,14],[519,6,520,8],[522,6,523,8],[551,2,551,4],[552,2,552,4],[553,3,553,4],[555,3,555,5],[555,8,555,14],[559,9,559,10],[543,8,543,9],[543,10,543,14],[544,8,544,9],[544,10,544,14],[545,6,546,8],[548,6,549,8],[540,8,540,9],[540,10,540,14],[541,8,541,9],[541,10,541,14],[542,8,542,9],[542,10,542,14],[569,8,569,9],[569,10,569,14],[570,8,570,9],[570,10,570,14],[571,6,572,8],[574,6,575,8],[566,8,566,9],[566,10,566,14],[567,8,567,9],[567,10,567,14],[568,8,568,9],[568,10,568,14],[563,8,563,9],[563,10,563,14],[564,8,564,9],[564,10,564,14],[565,8,565,9],[565,10,565,14],[592,8,592,9],[592,10,592,14],[593,8,593,9],[593,10,593,14],[594,8,594,9],[594,10,594,14],[589,8,589,9],[589,10,589,14],[590,8,590,9],[590,10,590,14],[591,8,591,9],[591,10,591,14],[577,2,577,4],[578,2,578,4],[579,3,579,4],[581,3,581,5],[581,8,581,14],[585,9,585,10],[615,8,615,9],[615,10,615,14],[616,8,616,9],[616,10,616,14],[617,8,617,9],[617,10,617,14],[603,2,603,4],[604,2,604,4],[605,3,605,4],[607,3,607,5],[607,8,607,14],[611,9,611,10],[595,8,595,9],[595,10,595,14],[596,8,596,9],[596,10,596,14],[597,6,598,8],[600,6,601,8],[629,2,629,4],[630,2,630,4],[631,3,631,4],[633,3,633,5],[633,8,633,14],[637,9,637,10],[621,8,621,9],[621,10,621,14],[622,8,622,9],[622,10,622,14],[623,6,624,8],[626,6,627,8],[618,8,618,9],[618,10,618,14],[619,8,619,9],[619,10,619,14],[620,8,620,9],[620,10,620,14],[647,8,647,9],[647,10,647,14],[648,8,648,9],[648,10,648,14],[649,6,650,8],[652,6,653,8],[644,8,644,9],[644,10,644,14],[645,8,645,9],[645,10,645,14],[646,8,646,9],[646,10,646,14],[641,8,641,9],[641,10,641,14],[642,8,642,9],[642,10,642,14],[643,8,643,9],[643,10,643,14],[670,8,670,9],[670,10,670,14],[671,8,671,9],[671,10,671,14],[672,8,672,9],[672,10,672,14],[667,8,667,9],[667,10,667,14],[668,8,668,9],[668,10,668,14],[669,8,669,9],[669,10,669,14],[655,2,655,4],[656,2,656,4],[657,3,657,4],[659,3,659,5],[659,8,659,14],[663,9,663,10],[693,8,693,9],[693,10,693,14],[694,8,694,9],[694,10,694,14],[695,8,695,9],[695,10,695,14],[681,2,681,4],[682,2,682,4],[683,3,683,4],[685,3,685,5],[685,8,685,14],[689,9,689,10],[673,8,673,9],[673,10,673,14],[674,8,674,9],[674,10,674,14],[675,6,676,8],[678,6,679,8],[707,2,707,4],[708,2,708,4],[709,3,709,4],[711,3,711,5],[711,8,711,14],[715,9,715,10],[699,8,699,9],[699,10,699,14],[700,8,700,9],[700,10,700,14],[701,6,702,8],[704,6,705,8],[696,8,696,9],[696,10,696,14],[697,8,697,9],[697,10,697,14],[698,8,698,9],[698,10,698,14],[725,8,725,9],[725,10,725,14],[726,8,726,9],[726,10,726,14],[727,6,728,8],[730,6,731,8],[722,8,722,9],[722,10,722,14],[723,8,723,9],[723,10,723,14],[724,8,724,9],[724,10,724,14],[719,8,719,9],[719,10,719,14],[720,8,720,9],[720,10,720,14],[721,8,721,9],[721,10,721,14],[748,8,748,9],[748,10,748,14],[749,8,749,9],[749,10,749,14],[750,8,750,9],[750,10,750,14],[745,8,745,9],[745,10,745,14],[746,8,746,9],[746,10,746,14],[747,8,747,9],[747,10,747,14],[733,2,733,4],[734,2,734,4],[735,3,735,4],[737,3,737,5],[737,8,737,14],[741,9,741,10],[771,8,771,9],[771,10,771,14],[772,8,772,9],[772,10,772,14],[773,8,773,9],[773,10,773,14],[759,2,759,4],[760,2,760,4],[761,3,761,4],[763,3,763,5],[763,8,763,14],[767,9,767,10],[751,8,751,9],[751,10,751,14],[752,8,752,9],[752,10,752,14],[753,6,754,8],[756,6,757,8],[785,2,785,4],[786,2,786,4],[787,3,787,4],[789,3,789,5],[789,8,789,14],[793,9,793,10],[777,8,777,9],[777,10,777,14],[778,8,778,9],[778,10,778,14],[779,6,780,8],[782,6,783,8],[774,8,774,9],[774,10,774,14],[775,8,775,9],[775,10,775,14],[776,8,776,9],[776,10,776,14],[803,8,803,9],[803,10,803,14],[804,8,804,9],[804,10,804,14],[805,6,806,8],[808,6,809,8],[800,8,800,9],[800,10,800,14],[801,8,801,9],[801,10,801,14],[802,8,802,9],[802,10,802,14],[797,8,797,9],[797,10,797,14],[798,8,798,9],[798,10,798,14],[799,8,799,9],[799,10,799,14],[826,8,826,9],[826,10,826,14],[827,8,827,9],[827,10,827,14],[828,8,828,9],[828,10,828,14],[823,8,823,9],[823,10,823,14],[824,8,824,9],[824,10,824,14],[825,8,825,9],[825,10,825,14],[811,2,811,4],[812,2,812,4],[813,3,813,4],[815,3,815,5],[815,8,815,14],[819,9,819,10],[849,8,849,9],[849,10,849,14],[850,8,850,9],[850,10,850,14],[851,8,851,9],[851,10,851,14],[837,2,837,4],[838,2,838,4],[839,3,839,4],[841,3,841,5],[841,8,841,14],[845,9,845,10],[829,8,829,9],[829,10,829,14],[830,8,830,9],[830,10,830,14],[831,6,832,8],[834,6,835,8],[863,2,863,4],[864,2,864,4],[865,3,865,4],[867,3,867,5],[867,8,867,14],[871,9,871,10],[855,8,855,9],[855,10,855,14],[856,8,856,9],[856,10,856,14],[857,6,858,8],[860,6,861,8],[852,8,852,9],[852,10,852,14],[853,8,853,9],[853,10,853,14],[854,8,854,9],[854,10,854,14],[881,8,881,9],[881,10,881,14],[882,8,882,9],[882,10,882,14],[883,6,884,8],[886,6,887,8],[878,8,878,9],[878,10,878,14],[879,8,879,9],[879,10,879,14],[880,8,880,9],[880,10,880,14],[875,8,875,9],[875,10,875,14],[876,8,876,9],[876,10,876,14],[877,8,877,9],[877,10,877,14],[904,8,904,9],[904,10,904,14],[905,8,905,9],[905,10,905,14],[906,8,906,9],[906,10,906,14],[901,8,901,9],[901,10,901,14],[902,8,902,9],[902,10,902,14],[903,8,903,9],[903,10,903,14],[889,2,889,4],[890,2,890,4],[891,3,891,4],[893,3,893,5],[893,8,893,14],[897,9,897,10],[927,8,927,9],[927,10,927,14],[928,8,928,9],[928,10,928,14],[929,8,929,9],[929,10,929,14],[915,2,915,4],[916,2,916,4],[917,3,917,4],[919,3,919,5],[919,8,919,14],[923,9,923,10],[907,8,907,9],[907,10,907,14],[908,8,908,9],[908,10,908,14],[909,6,910,8],[912,6,913,8],[941,2,941,4],[942,2,942,4],[943,3,943,4],[945,3,945,5],[945,8,945,14],[949,9,949,10],[933,8,933,9],[933,10,933,14],[934,8,934,9],[934,10,934,14],[935,6,936,8],[938,6,939,8],[930,8,930,9],[930,10,930,14],[931,8,931,9],[931,10,931,14],[932,8,932,9],[932,10,932,14],[959,8,959,9],[959,10,959,14],[960,8,960,9],[960,10,960,14],[961,6,962,8],[964,6,965,8],[956,8,956,9],[956,10,956,14],[957,8,957,9],[957,10,957,14],[958,8,958,9],[958,10,958,14],[953,8,953,9],[953,10,953,14],[954,8,954,9],[954,10,954,14],[955,8,955,9],[955,10,955,14],[982,8,982,9],[982,10,982,14],[983,8,983,9],[983,10,983,14],[984,8,984,9],[984,10,984,14],[979,8,979,9],[979,10,979,14],[980,8,980,9],[980,10,980,14],[981,8,981,9],[981,10,981,14],[967,2,967,4],[968,2,968,4],[969,3,969,4],[971,3,971,5],[971,8,971,14],[975,9,975,10],[1005,8,1005,9],[1005,10,1005,14],[1006,8,1006,9],[1006,10,1006,14],[1007,8,1007,9],[1007,10,1007,14],[993,2,993,4],[994,2,994,4],[995,3,995,4],[997,3,997,5],[997,8,997,14],[1001,9,1001,10],[985,8,985,9],[985,10,985,14],[986,8,986,9],[986,10,986,14],[987,6,988,8],[990,6,991,8],[1019,2,1019,4],[1020,2,1020,4],[1021,3,1021,4],[1023,3,1023,5],[1023,8,1023,14],[1027,9,1027,10],[1011,8,1011,9],[1011,10,1011,14],[1012,8,1012,9],[1012,10,1012,14],[1013,6,1014,8],[1016,6,1017,8],[1008,8,1008,9],[1008,10,1008,14],[1009,8,1009,9],[1009,10,1009,14],[1010,8,1010,9],[1010,10,1010,14],[1037,8,1037,9],[1037,10,1037,14],[1038,8,1038,9],[1038,10,1038,14],[1039,6,1040,8],[1042,6,1043,8],[1034,8,1034,9],[1034,10,1034,14],[1035,8,1035,9],[1035,10,1035,14],[1036,8,1036,9],[1036,10,1036,14],[1031,8,1031,9],[1031,10,1031,14],[1032,8,1032,9],[1032,10,1032,14],[1033,8,1033,9],[1033,10,1033,14],[1060,8,1060,9],[1060,10,1060,14],[1061,8,1061,9],[1061,10,1061,14],[1062,8,1062,9],[1062,10,1062,14],[1057,8,1057,9],[1057,10,1057,14],[1058,8,1058,9],[1058,10,1058,14],[1059,8,1059,9],[1059,10,1059,14],[1045,2,1045,4],[1046,2,1046,4],[1047,3,1047,4],[1049,3,1049,5],[1049,8,1049,14],[1053,9,1053,10],[1083,8,1083,9],[1083,10,1083,14],[1084,8,1084,9],[1084,10,1084,14],[1085,8,1085,9],[1085,10,1085,14],[1071,2,1071,4],[1072,2,1072,4],[1073,3,1073,4],[1075,3,1075,5],[1075,8,1075,14],[1079,9,1079,10],[1063,8,1063,9],[1063,10,1063,14]],"merged_total":1222,"flags":["merged_cut"]}
[]
[]
[null,null,null,null,null,null,null,{"$f":"CONCATENATE(D9,\" \",G8)","v":" "}]
[]
[]
[null,null,null,null,null,null,null,null,null,null,null,null,null,null,null,null,null,null,null,null,null,null,null,null,"PAID"]
[null,null,null,null,null,null,null,null,null,null,null,null,null,null,null,null,null,null,null,null,null,null,null,null,"DOLPHIN"]
[null,null,null,null,null,null,null,null,null,null,null,null,null,null,null,null,null,null,null,null,null,null,null,null,"HIGH"]
[null,null,null,null,null,null,null,null,null,null,null,null,null,null,null,null,null,null,null,null,null,null,null,null,"LUX"]
[null,null,null,null,null,null,null,null,null,null,null,null,null,null,null,null,null,null,null,null,null,null,null,null,"SUPER LUX"]
[null,null,null,null,null,null,null,null,null,null,null,null,null,null,null,null,null,null,null,null,null,null,null,null,"PRESTIGE"]
[null,null,null,null,null,null,null,null,null,null,null,null,null,null,null,null,null,null,null,null,null,null,null,null,"ROYAL"]
[null,null,null,null,null,null,null,null,null,null,null,null,null,null,null,null,null,null,null,null,null,null,null,null,"PARADISE"]
[null,null,null,null,null,null,null,null,null,null,null,null,null,null,null,null,null,null,null,null,null,"L.L",null,null,"SOUVEREIGN"]
[null,null,null,null,null,null,null,null,null,null,null,null,null,null,null,null,null,null,null,null,null,"$",null,null,"EMINENCE"]
[null,null,null,null,null,null,null,null,null,null,null,null,null,null,null,null,null,null,null,null,null,null,null,null,"REGENCY"]
[null,null,null,null,null,null,null,null,null,null,null,null,null,null,null,null,null,null,null,null,null,null,null,null,"EMPRESS"]
[null,null,null,null,null,null,null,null,null,null,null,null,null,null,null,null,null,null,null,null,null,null,null,null,"تخت سوميه"]
[null,null,null,null,null,null,null,null,null,null,null,null,null,null,null,null,null,null,null,null,null,null,null,null,"ظهر"]
[null,null,null,null,null,null,null,null,null,null,null,null,null,null,null,null,null,null,null,null,null,null,null,null,"ماجيك 3 مقاعد"]
[null,null,null,null,null,null,null,null,null,null,null,null,null,null,null,null,null,null,null,null,null,null,null,null,"ماجيك مقعدين"]
[null,null,null,null,null,null,null,null,null,null,null,null,null,null,null,null,null,null,null,null,null,null,null,null,"ماجيك مقعد"]
[null,null,null,null,null,null,null,null,null,null,null,null,null,null,null,null,null,null,null,null,null,null,null,null,"ماجيك + footrest"]
[null,null,null,null,null,null,null,null,null,null,null,null,null,null,null,null,null,null,null,null,null,null,null,null,"كونكورد كبيرة"]
[null,null,null,null,null,null,null,null,null,null,null,null,null,null,null,null,null,null,null,null,null,null,null,null,"كونكورد وسط"]
[null,null,null,null,null,null,null,null,null,null,null,null,null,null,null,null,null,null,null,null,null,null,null,null,"كونكورد صغيرة"]
[null,null,null,null,null,null,null,null,null,null,null,null,null,null,null,null,null,null,null,null,null,null,null,null,"Elite"]
[null,null,null,null,null,null,null,null,null,null,null,null,null,null,null,null,null,null,null,null,null,null,null,null,"كبيرة OTELLO"]
[null,null,null,null,null,null,null,null,null,null,null,null,null,null,null,null,null,null,null,null,null,null,null,null,"صغيرة OTELLO"]
[]
[]
[null,null,"شركة حلباوي  للتجارة والصناعة"]
[null,null,"الجناح : 71/977000 - 01/836436",null,null,null,null,"دفتر توصيل"]
[null,null,"الـفـرع:","الجــنــاح",null,null,null,{"$f":"G8+1","v":1},"NO:"]
[null,null,"الاســم:"]
[null,null,"تـاريـخ الشـراء:",null,null,null,null,"تاريخ التسليم:"]
[null,null,"الـعــنــوان:"]
[]
[null,null,"بـنـاية:",null,null,"ط:",null,"هاتف:",null,null,null,"/"]
[null,null,"القـيـمة:",null,null,null,"واصل:",null,null,"باقي:"]
[null,null,"مــلاحـظـات:"]
[]
[]
[null,null,"الــــنــوع","العرض","الطول","العدد","الموديل","القماش الرئيسي","قماش الداير",null,"مـــــلاحــظــات"]
[]
[]
[]
[]
[]
[]
[]
[null,null,null,null,null,null,"لقد تم إستلام البضاعة",null,null,"الإسم :"]
[null,null,"البائع"]
[null,null,null,null,null,null,null,null,null,"التاريخ :"]
[null,null,null,null,null,null,"كاملة وبحالة جيدة"]
[null,null,"السائق",null,null,null,null,null,null,"الإمضاء :"]
[]
[null,null,"شركة حلباوي  للتجارة والصناعة"]
[null,null,"الجناح : 71/977000 - 01/836436",null,null,null,null,"دفتر توصيل"]
[null,null,"الـفـرع:","الجــنــاح",null,null,null,{"$f":"H34+1","v":2},"NO:"]
[null,null,"الاســم:"]
[null,null,"تـاريـخ الشـراء:",null,null,null,null,"تاريخ التسليم:"]
[null,null,"الـعــنــوان:"]
[]
[null,null,"بـنـاية:",null,null,"ط:",null,"هاتف:",null,null,null,"/"]
[null,null,"القـيـمة:",null,null,null,"واصل:",null,null,"باقي:"]
[null,null,"مــلاحـظـات:"]
[]
[]
[null,null,"الــــنــوع","العرض","الطول","العدد","الموديل","القماش الرئيسي","قماش الداير",null,"مـــــلاحــظــات"]
[]
[]
[]
[]
[]
[]
[]
[null,null,null,null,null,null,"لقد تم إستلام البضاعة",null,null,"الإسم :"]
[null,null,"البائع"]
[null,null,null,null,null,null,null,null,null,"التاريخ :"]
[null,null,null,null,null,null,"كاملة وبحالة جيدة"]
[null,null,"السائق",null,null,null,null,null,null,"الإمضاء :"]
[]
[null,null,"شركة حلباوي  للتجارة والصناعة"]
[null,null,"الجناح : 71/977000 - 01/836436",null,null,null,null,"دفتر توصيل"]
[null,null,"الـفـرع:","الجــنــاح",null,null,null,{"$f":"H60+1","v":3},"NO:"]
[null,null,"الاســم:"]
[null,null,"تـاريـخ الشـراء:",null,null,null,null,"تاريخ التسليم:"]
[null,null,"الـعــنــوان:"]
[]
[null,null,"بـنـاية:",null,null,"ط:",null,"هاتف:",null,null,null,"/"]
[null,null,"القـيـمة:",null,null,null,"واصل:",null,null,"باقي:"]
[null,null,"مــلاحـظـات:"]
[]
[]
[null,null,"الــــنــوع","العرض","الطول","العدد","الموديل","القماش الرئيسي","قماش الداير",null,"مـــــلاحــظــات"]
[]
[]
[]
[]
[]
[]
[]
[null,null,null,null,null,null,"لقد تم إستلام البضاعة",null,null,"الإسم :"]
[null,null,"البائع"]
[null,null,null,null,null,null,null,null,null,"التاريخ :"]
[null,null,null,null,null,null,"كاملة وبحالة جيدة"]
[null,null,"السائق",null,null,null,null,null,null,"الإمضاء :"]
[]
[null,null,"شركة حلباوي  للتجارة والصناعة"]
[null,null,"الجناح : 71/977000 - 01/836436",null,null,null,null,"دفتر توصيل"]
[null,null,"الـفـرع:","الجــنــاح",null,null,null,{"$f":"H86+1","v":4},"NO:"]
[null,null,"الاســم:"]
[null,null,"تـاريـخ الشـراء:",null,null,null,null,"تاريخ التسليم:"]
[null,null,"الـعــنــوان:"]
[]
[null,null,"بـنـاية:",null,null,"ط:",null,"هاتف:",null,null,null,"/"]
[null,null,"القـيـمة:",null,null,null,"واصل:",null,null,"باقي:"]
[null,null,"مــلاحـظـات:"]
[]
[]
[null,null,"الــــنــوع","العرض","الطول","العدد","الموديل","القماش الرئيسي","قماش الداير",null,"مـــــلاحــظــات"]
[]
[]
[]
[]
[]
[]
[]
[null,null,null,null,null,null,"لقد تم إستلام البضاعة",null,null,"الإسم :"]
[null,null,"البائع"]
[null,null,null,null,null,null,null,null,null,"التاريخ :"]
[null,null,null,null,null,null,"كاملة وبحالة جيدة"]
[null,null,"السائق",null,null,null,null,null,null,"الإمضاء :"]
[]
[null,null,"شركة حلباوي  للتجارة والصناعة"]
[null,null,"الجناح : 71/977000 - 01/836436",null,null,null,null,"دفتر توصيل"]
[null,null,"الـفـرع:","الجــنــاح",null,null,null,{"$f":"H112+1","v":5},"NO:"]
[null,null,"الاســم:"]
[null,null,"تـاريـخ الشـراء:",null,null,null,null,"تاريخ التسليم:"]
[null,null,"الـعــنــوان:"]
[]
[null,null,"بـنـاية:",null,null,"ط:",null,"هاتف:",null,null,null,"/"]
[null,null,"القـيـمة:",null,null,null,"واصل:",null,null,"باقي:"]
[null,null,"مــلاحـظـات:"]
[]
[]
[null,null,"الــــنــوع","العرض","الطول","العدد","الموديل","القماش الرئيسي","قماش الداير",null,"مـــــلاحــظــات"]
[]
[]
[]
[]
[]
[]
[]
[null,null,null,null,null,null,"لقد تم إستلام البضاعة",null,null,"الإسم :"]
[null,null,"البائع"]
[null,null,null,null,null,null,null,null,null,"التاريخ :"]
[null,null,null,null,null,null,"كاملة وبحالة جيدة"]
[null,null,"السائق",null,null,null,null,null,null,"الإمضاء :"]
[]
[null,null,"شركة حلباوي  للتجارة والصناعة"]
[null,null,"الجناح : 71/977000 - 01/836436",null,null,null,null,"دفتر توصيل"]
[null,null,"الـفـرع:","الجــنــاح",null,null,null,{"$f":"H138+1","v":6},"NO:"]
[null,null,"الاســم:"]
[null,null,"تـاريـخ الشـراء:",null,null,null,null,"تاريخ التسليم:"]
[null,null,"الـعــنــوان:"]
[]
[null,null,"بـنـاية:",null,null,"ط:",null,"هاتف:",null,null,null,"/"]
[null,null,"القـيـمة:",null,null,null,"واصل:",null,null,"باقي:"]
[null,null,"مــلاحـظـات:"]
[]
[]
[null,null,"الــــنــوع","العرض","الطول","العدد","الموديل","القماش الرئيسي","قماش الداير",null,"مـــــلاحــظــات"]
[]
[]
[]
[]
[]
[]
[]
[null,null,null,null,null,null,"لقد تم إستلام البضاعة",null,null,"الإسم :"]
[null,null,"البائع"]
[null,null,null,null,null,null,null,null,null,"التاريخ :"]
[null,null,null,null,null,null,"كاملة وبحالة جيدة"]
[null,null,"السائق",null,null,null,null,null,null,"الإمضاء :"]
[]
[null,null,"شركة حلباوي  للتجارة والصناعة"]
[null,null,"الجناح : 71/977000 - 01/836436",null,null,null,null,"دفتر توصيل"]
[null,null,"الـفـرع:","الجــنــاح",null,null,null,{"$f":"H164+1","v":7},"NO:"]
[null,null,"الاســم:"]
[null,null,"تـاريـخ الشـراء:",null,null,null,null,"تاريخ التسليم:"]
[null,null,"الـعــنــوان:"]
[]
[null,null,"بـنـاية:",null,null,"ط:",null,"هاتف:",null,null,null,"/"]
[null,null,"القـيـمة:",null,null,null,"واصل:",null,null,"باقي:"]
[null,null,"مــلاحـظـات:"]
[]
[]
[null,null,"الــــنــوع","العرض","الطول","العدد","الموديل","القماش الرئيسي","قماش الداير",null,"مـــــلاحــظــات"]
[]
[]
[]
[]
[]
[]
[]
[null,null,null,null,null,null,"لقد تم إستلام البضاعة",null,null,"الإسم :"]
[null,null,"البائع"]
[null,null,null,null,null,null,null,null,null,"التاريخ :"]
[null,null,null,null,null,null,"كاملة وبحالة جيدة"]
[null,null,"السائق",null,null,null,null,null,null,"الإمضاء :"]
[]
[null,null,"شركة حلباوي  للتجارة والصناعة"]
[null,null,"الجناح : 71/977000 - 01/836436",null,null,null,null,"دفتر توصيل"]
[null,null,"الـفـرع:","الجــنــاح",null,null,null,{"$f":"H190+1","v":8},"NO:"]
[null,null,"الاســم:"]
[null,null,"تـاريـخ الشـراء:",null,null,null,null,"تاريخ التسليم:"]
[null,null,"الـعــنــوان:"]
[]
[null,null,"بـنـاية:",null,null,"ط:",null,"هاتف:",null,null,null,"/"]
[null,null,"القـيـمة:",null,null,null,"واصل:",null,null,"باقي:"]
[null,null,"مــلاحـظـات:"]
[]
[]
[null,null,"الــــنــوع","العرض","الطول","العدد","الموديل","القماش الرئيسي","قماش الداير",null,"مـــــلاحــظــات"]
[]
[]
[]
[]
[]
[]
[]
[null,null,null,null,null,null,"لقد تم إستلام البضاعة",null,null,"الإسم :"]
[null,null,"البائع"]
[null,null,null,null,null,null,null,null,null,"التاريخ :"]
[null,null,null,null,null,null,"كاملة وبحالة جيدة"]
[null,null,"السائق",null,null,null,null,null,null,"الإمضاء :"]
[]
[null,null,"شركة حلباوي  للتجارة والصناعة"]
[null,null,"الجناح : 71/977000 - 01/836436",null,null,null,null,"دفتر توصيل"]
[null,null,"الـفـرع:","الجــنــاح",null,null,null,{"$f":"H216+1","v":9},"NO:"]
[null,null,"الاســم:"]
[null,null,"تـاريـخ الشـراء:",null,null,null,null,"تاريخ التسليم:"]
[null,null,"الـعــنــوان:"]
[]
[null,null,"بـنـاية:",null,null,"ط:",null,"هاتف:",null,null,null,"/"]
[null,null,"القـيـمة:",null,null,null,"واصل:",null,null,"باقي:"]
[null,null,"مــلاحـظـات:"]
[]
[]
[null,null,"الــــنــوع","العرض","الطول","العدد","الموديل","القماش الرئيسي","قماش الداير",null,"مـــــلاحــظــات"]
[]
[]
[]
[]
[]
[]
[]
[null,null,null,null,null,null,"لقد تم إستلام البضاعة",null,null,"الإسم :"]
[null,null,"البائع"]
[null,null,null,null,null,null,null,null,null,"التاريخ :"]
[null,null,null,null,null,null,"كاملة وبحالة جيدة"]
[null,null,"السائق",null,null,null,null,null,null,"الإمضاء :"]
[]
[null,null,"شركة حلباوي  للتجارة والصناعة"]
[null,null,"الجناح : 71/977000 - 01/836436",null,null,null,null,"دفتر توصيل"]
[null,null,"الـفـرع:","الجــنــاح",null,null,null,{"$f":"H242+1","v":10},"NO:"]
[null,null,"الاســم:"]
[null,null,"تـاريـخ الشـراء:",null,null,null,null,"تاريخ التسليم:"]
[null,null,"الـعــنــوان:"]
[]
[null,null,"بـنـاية:",null,null,"ط:",null,"هاتف:",null,null,null,"/"]
[null,null,"القـيـمة:",null,null,null,"واصل:",null,null,"باقي:"]
[null,null,"مــلاحـظـات:"]
[]
[]
[null,null,"الــــنــوع","العرض","الطول","العدد","الموديل","القماش الرئيسي","قماش الداير",null,"مـــــلاحــظــات"]
[]
[]
[]
[]
[]
[]
[]
[null,null,null,null,null,null,"لقد تم إستلام البضاعة",null,null,"الإسم :"]
[null,null,"البائع"]
[null,null,null,null,null,null,null,null,null,"التاريخ :"]
[null,null,null,null,null,null,"كاملة وبحالة جيدة"]
[null,null,"السائق",null,null,null,null,null,null,"الإمضاء :"]
[]
[null,null,"شركة حلباوي  للتجارة والصناعة"]
[null,null,"الجناح : 71/977000 - 01/836436",null,null,null,null,"دفتر توصيل"]
[null,null,"الـفـرع:","الجــنــاح",null,null,null,{"$f":"H268+1","v":11},"NO:"]
[null,null,"الاســم:"]
[null,null,"تـاريـخ الشـراء:",null,null,null,null,"تاريخ التسليم:"]
[null,null,"الـعــنــوان:"]
[]
[null,null,"بـنـاية:",null,null,"ط:",null,"هاتف:",null,null,null,"/"]
[null,null,"القـيـمة:",null,null,null,"واصل:",null,null,"باقي:"]
[null,null,"مــلاحـظـات:"]
[]
[]
[null,null,"الــــنــوع","العرض","الطول","العدد","الموديل","القماش الرئيسي","قماش الداير",null,"مـــــلاحــظــات"]
[]
[]
[]
[]
[]
[]
[]
[null,null,null,null,null,null,"لقد تم إستلام البضاعة",null,null,"الإسم :"]
[null,null,"البائع"]
[null,null,null,null,null,null,null,null,null,"التاريخ :"]
[null,null,null,null,null,null,"كاملة وبحالة جيدة"]
[null,null,"السائق",null,null,null,null,null,null,"الإمضاء :"]
[]
[null,null,"شركة حلباوي  للتجارة والصناعة"]
[null,null,"الجناح : 71/977000 - 01/836436",null,null,null,null,"دفتر توصيل"]
[null,null,"الـفـرع:","الجــنــاح",null,null,null,{"$f":"H294+1","v":12},"NO:"]
[null,null,"الاســم:"]
[null,null,"تـاريـخ الشـراء:",null,null,null,null,"تاريخ التسليم:"]
[null,null,"الـعــنــوان:"]
[]
[null,null,"بـنـاية:",null,null,"ط:",null,"هاتف:",null,null,null,"/"]
[null,null,"القـيـمة:",null,null,null,"واصل:",null,null,"باقي:"]
[null,null,"مــلاحـظـات:"]
[]
[]
[null,null,"الــــنــوع","العرض","الطول","العدد","الموديل","القماش الرئيسي","قماش الداير",null,"مـــــلاحــظــات"]
[]
[]
[]
[]
[]
[]
[]
[null,null,null,null,null,null,"لقد تم إستلام البضاعة",null,null,"الإسم :"]
[null,null,"البائع"]
[null,null,null,null,null,null,null,null,null,"التاريخ :"]
[null,null,null,null,null,null,"كاملة وبحالة جيدة"]
[null,null,"السائق",null,null,null,null,null,null,"الإمضاء :"]
[]
[null,null,"شركة حلباوي  للتجارة والصناعة"]
[null,null,"الجناح : 71/977000 - 01/836436",null,null,null,null,"دفتر توصيل"]
[null,null,"الـفـرع:","الجــنــاح",null,null,null,{"$f":"H320+1","v":13},"NO:"]
[null,null,"الاســم:"]
[null,null,"تـاريـخ الشـراء:",null,null,null,null,"تاريخ التسليم:"]
[null,null,"الـعــنــوان:"]
[]
[null,null,"بـنـاية:",null,null,"ط:",null,"هاتف:",null,null,null,"/"]
[null,null,"القـيـمة:",null,null,null,"واصل:",null,null,"باقي:"]
[null,null,"مــلاحـظـات:"]
[]
[]
[null,null,"الــــنــوع","العرض","الطول","العدد","الموديل","القماش الرئيسي","قماش الداير",null,"مـــــلاحــظــات"]
[]
[]
[]
[]
[]
[]
[]
[null,null,null,null,null,null,"لقد تم إستلام البضاعة",null,null,"الإسم :"]
[null,null,"البائع"]
[null,null,null,null,null,null,null,null,null,"التاريخ :"]
[null,null,null,null,null,null,"كاملة وبحالة جيدة"]
[null,null,"السائق",null,null,null,null,null,null,"الإمضاء :"]
[]
[null,null,"شركة حلباوي  للتجارة والصناعة"]
[null,null,"الجناح : 71/977000 - 01/836436",null,null,null,null,"دفتر توصيل"]
[null,null,"الـفـرع:","الجــنــاح",null,null,null,{"$f":"H346+1","v":14},"NO:"]
[null,null,"الاســم:"]
[null,null,"تـاريـخ الشـراء:",null,null,null,null,"تاريخ التسليم:"]
[null,null,"الـعــنــوان:"]
[]
[null,null,"بـنـاية:",null,null,"ط:",null,"هاتف:",null,null,null,"/"]
[null,null,"القـيـمة:",null,null,null,"واصل:",null,null,"باقي:"]
[null,null,"مــلاحـظـات:"]
[]
[]
[null,null,"الــــنــوع","العرض","الطول","العدد","الموديل","القماش الرئيسي","قماش الداير",null,"مـــــلاحــظــات"]
[]
[]
[]
[]
[]
[]
[]
[null,null,null,null,null,null,"لقد تم إستلام البضاعة",null,null,"الإسم :"]
[null,null,"البائع"]
[null,null,null,null,null,null,null,null,null,"التاريخ :"]
[null,null,null,null,null,null,"كاملة وبحالة جيدة"]
[null,null,"السائق",null,null,null,null,null,null,"الإمضاء :"]
[]
[null,null,"شركة حلباوي  للتجارة والصناعة"]
[null,null,"الجناح : 71/977000 - 01/836436",null,null,null,null,"دفتر توصيل"]
[null,null,"الـفـرع:","الجــنــاح",null,null,null,{"$f":"H372+1","v":15},"NO:"]
[null,null,"الاســم:"]
[null,null,"تـاريـخ الشـراء:",null,null,null,null,"تاريخ التسليم:"]
[null,null,"الـعــنــوان:"]
[]
[null,null,"بـنـاية:",null,null,"ط:",null,"هاتف:",null,null,null,"/"]
[null,null,"القـيـمة:",null,null,null,"واصل:",null,null,"باقي:"]
[null,null,"مــلاحـظـات:"]
[]
[]
[null,null,"الــــنــوع","العرض","الطول","العدد","الموديل","القماش الرئيسي","قماش الداير",null,"مـــــلاحــظــات"]
[]
[]
[]
[]
[]
[]
[]
[null,null,null,null,null,null,"لقد تم إستلام البضاعة",null,null,"الإسم :"]
[null,null,"البائع"]
[null,null,null,null,null,null,null,null,null,"التاريخ :"]
[null,null,null,null,null,null,"كاملة وبحالة جيدة"]
[null,null,"السائق",null,null,null,null,null,null,"الإمضاء :"]
[]
[null,null,"شركة حلباوي  للتجارة والصناعة"]
[null,null,"الجناح : 71/977000 - 01/836436",null,null,null,null,"دفتر توصيل"]
[null,null,"الـفـرع:","الجــنــاح",null,null,null,{"$f":"H398+1","v":16},"NO:"]
[null,null,"الاســم:"]
[null,null,"تـاريـخ الشـراء:",null,null,null,null,"تاريخ التسليم:"]
[null,null,"الـعــنــوان:"]
[]
[null,null,"بـنـاية:",null,null,"ط:",null,"هاتف:",null,null,null,"/"]
[null,null,"القـيـمة:",null,null,null,"واصل:",null,null,"باقي:"]
[null,null,"مــلاحـظـات:"]
[]
[]
[null,null,"الــــنــوع","العرض","الطول","العدد","الموديل","القماش الرئيسي","قماش الداير",null,"مـــــلاحــظــات"]
[]
[]
[]
[]
[]
[]
[]
[null,null,null,null,null,null,"لقد تم إستلام البضاعة",null,null,"الإسم :"]
[null,null,"البائع"]
[null,null,null,null,null,null,null,null,null,"التاريخ :"]
[null,null,null,null,null,null,"كاملة وبحالة جيدة"]
[null,null,"السائق",null,null,null,null,null,null,"الإمضاء :"]
[]
[null,null,"شركة حلباوي  للتجارة والصناعة"]
[null,null,"الجناح : 71/977000 - 01/836436",null,null,null,null,"دفتر توصيل"]
[null,null,"الـفـرع:","الجــنــاح",null,null,null,{"$f":"H424+1","v":17},"NO:"]
[null,null,"الاســم:"]
[null,null,"تـاريـخ الشـراء:",null,null,null,null,"تاريخ التسليم:"]
[null,null,"الـعــنــوان:"]
[]
[null,null,"بـنـاية:",null,null,"ط:",null,"هاتف:",null,null,null,"/"]
[null,null,"القـيـمة:",null,null,null,"واصل:",null,null,"باقي:"]
[null,null,"مــلاحـظـات:"]
[]
[]
[null,null,"الــــنــوع","العرض","الطول","العدد","الموديل","القماش الرئيسي","قماش الداير",null,"مـــــلاحــظــات"]
[]
[]
[]
[]
[]
[]
[]
[null,null,null,null,null,null,"لقد تم إستلام البضاعة",null,null,"الإسم :"]
[null,null,"البائع"]
[null,null,null,null,null,null,null,null,null,"التاريخ :"]
[null,null,null,null,null,null,"كاملة وبحالة جيدة"]
[null,null,"السائق",null,null,null,null,null,null,"الإمضاء :"]
[]
[null,null,"شركة حلباوي  للتجارة والصناعة"]
[null,null,"الجناح : 71/977000 - 01/836436",null,null,null,null,"دفتر توصيل"]
[null,null,"الـفـرع:","الجــنــاح",null,null,null,{"$f":"H450+1","v":18},"NO:"]
[null,null,"الاســم:"]
[null,null,"تـاريـخ الشـراء:",null,null,null,null,"تاريخ التسليم:"]
[null,null,"الـعــنــوان:"]
[]
[null,null,"بـنـاية:",null,null,"ط:",null,"هاتف:",null,null,null,"/"]
[null,null,"القـيـمة:",null,null,null,"واصل:",null,null,"باقي:"]
[null,null,"مــلاحـظـات:"]
[]
[]
[null,null,"الــــنــوع","العرض","الطول","العدد","الموديل","القماش الرئيسي","قماش الداير",null,"مـــــلاحــظــات"]
[]
[]
[]
[]
[]
[]
[]
[null,null,null,null,null,null,"لقد تم إستلام البضاعة",null,null,"الإسم :"]
[null,null,"البائع"]
[null,null,null,null,null,null,null,null,null,"التاريخ :"]
[null,null,null,null,null,null,"كاملة وبحالة جيدة"]
[null,null,"السائق",null,null,null,null,null,null,"الإمضاء :"]
[]
[null,null,"شركة حلباوي  للتجارة والصناعة"]
[null,null,"الجناح : 71/977000 - 01/836436",null,null,null,null,"دفتر توصيل"]
[null,null,"الـفـرع:","الجــنــاح",null,null,null,{"$f":"H476+1","v":19},"NO:"]
[null,null,"الاســم:"]
[null,null,"تـاريـخ الشـراء:",null,null,null,null,"تاريخ التسليم:"]
[null,null,"الـعــنــوان:"]
[]
[null,null,"بـنـاية:",null,null,"ط:",null,"هاتف:",null,null,null,"/"]
[null,null,"القـيـمة:",null,null,null,"واصل:",null,null,"باقي:"]
[null,null,"مــلاحـظـات:"]
[]
[]
[null,null,"الــــنــوع","العرض","الطول","العدد","الموديل","القماش الرئيسي","قماش الداير",null,"مـــــلاحــظــات"]
[]
[]
[]
[]
[]
[]
[]
[null,null,null,null,null,null,"لقد تم إستلام البضاعة",null,null,"الإسم :"]
[null,null,"البائع"]
[null,null,null,null,null,null,null,null,null,"التاريخ :"]
[null,null,null,null,null,null,"كاملة وبحالة جيدة"]
[null,null,"السائق",null,null,null,null,null,null,"الإمضاء :"]
[]
[null,null,"شركة حلباوي  للتجارة والصناعة"]
[null,null,"الجناح : 71/977000 - 01/836436",null,null,null,null,"دفتر توصيل"]
[null,null,"الـفـرع:","الجــنــاح",null,null,null,{"$f":"H502+1","v":20},"NO:"]
[null,null,"الاســم:"]
[null,null,"تـاريـخ الشـراء:",null,null,null,null,"تاريخ التسليم:"]
[null,null,"الـعــنــوان:"]
[]
[null,null,"بـنـاية:",null,null,"ط:",null,"هاتف:",null,null,null,"/"]
[null,null,"القـيـمة:",null,null,null,"واصل:",null,null,"باقي:"]
[null,null,"مــلاحـظـات:"]
[]
[]
[null,null,"الــــنــوع","العرض","الطول","العدد","الموديل","القماش الرئيسي","قماش الداير",null,"مـــــلاحــظــات"]
[]
[]
[]
[]
[]
[]
[]
[null,null,null,null,null,null,"لقد تم إستلام البضاعة",null,null,"الإسم :"]
[null,null,"البائع"]
[null,null,null,null,null,null,null,null,null,"التاريخ :"]
[null,null,null,null,null,null,"كاملة وبحالة جيدة"]
[null,null,"السائق",null,null,null,null,null,null,"الإمضاء :"]
[]
[null,null,"شركة حلباوي  للتجارة والصناعة"]
[null,null,"الجناح : 71/977000 - 01/836436",null,null,null,null,"دفتر توصيل"]
[null,null,"الـفـرع:","الجــنــاح",null,null,null,{"$f":"H528+1","v":21},"NO:"]
[null,null,"الاســم:"]
[null,null,"تـاريـخ الشـراء:",null,null,null,null,"تاريخ التسليم:"]
[null,null,"الـعــنــوان:"]
[]
[null,null,"بـنـاية:",null,null,"ط:",null,"هاتف:",null,null,null,"/"]
[null,null,"القـيـمة:",null,null,null,"واصل:",null,null,"باقي:"]
[null,null,"مــلاحـظـات:"]
[]
[]
[null,null,"الــــنــوع","العرض","الطول","العدد","الموديل","القماش الرئيسي","قماش الداير",null,"مـــــلاحــظــات"]
[]
[]
[]
[]
[]
[]
[]
[null,null,null,null,null,null,"لقد تم إستلام البضاعة",null,null,"الإسم :"]
[null,null,"البائع"]
[null,null,null,null,null,null,null,null,null,"التاريخ :"]
[null,null,null,null,null,null,"كاملة وبحالة جيدة"]
[null,null,"السائق",null,null,null,null,null,null,"الإمضاء :"]
[]
[null,null,"شركة حلباوي  للتجارة والصناعة"]
[null,null,"الجناح : 71/977000 - 01/836436",null,null,null,null,"دفتر توصيل"]
[null,null,"الـفـرع:","الجــنــاح",null,null,null,{"$f":"H554+1","v":22},"NO:"]
[null,null,"الاســم:"]
[null,null,"تـاريـخ الشـراء:",null,null,null,null,"تاريخ التسليم:"]
[null,null,"الـعــنــوان:"]
[]
[null,null,"بـنـاية:",null,null,"ط:",null,"هاتف:",null,null,null,"/"]
[null,null,"القـيـمة:",null,null,null,"واصل:",null,null,"باقي:"]
[null,null,"مــلاحـظـات:"]
[]
[]
[null,null,"الــــنــوع","العرض","الطول","العدد","الموديل","القماش الرئيسي","قماش الداير",null,"مـــــلاحــظــات"]
[]
[]
[]
[]
[]
[]
[]
[null,null,null,null,null,null,"لقد تم إستلام البضاعة",null,null,"الإسم :"]
[null,null,"البائع"]
[null,null,null,null,null,null,null,null,null,"التاريخ :"]
[null,null,null,null,null,null,"كاملة وبحالة جيدة"]
[null,null,"السائق",null,null,null,null,null,null,"الإمضاء :"]
[]
[null,null,"شركة حلباوي  للتجارة والصناعة"]
[null,null,"الجناح : 71/977000 - 01/836436",null,null,null,null,"دفتر توصيل"]
[null,null,"الـفـرع:","الجــنــاح",null,null,null,{"$f":"H580+1","v":23},"NO:"]
[null,null,"الاســم:"]
[null,null,"تـاريـخ الشـراء:",null,null,null,null,"تاريخ التسليم:"]
[null,null,"الـعــنــوان:"]
[]
[null,null,"بـنـاية:",null,null,"ط:",null,"هاتف:",null,null,null,"/"]
[null,null,"القـيـمة:",null,null,null,"واصل:",null,null,"باقي:"]
[null,null,"مــلاحـظـات:"]
[]
[]
[null,null,"الــــنــوع","العرض","الطول","العدد","الموديل","القماش الرئيسي","قماش الداير",null,"مـــــلاحــظــات"]
[]
[]
[]
[]
[]
[]
[]
[null,null,null,null,null,null,"لقد تم إستلام البضاعة",null,null,"الإسم :"]
[null,null,"البائع"]
[null,null,null,null,null,null,null,null,null,"التاريخ :"]
[null,null,null,null,null,null,"كاملة وبحالة جيدة"]
[null,null,"السائق",null,null,null,null,null,null,"الإمضاء :"]
[]
[null,null,"شركة حلباوي  للتجارة والصناعة"]
[null,null,"الجناح : 71/977000 - 01/836436",null,null,null,null,"دفتر توصيل"]
[null,null,"الـفـرع:","الجــنــاح",null,null,null,{"$f":"H606+1","v":24},"NO:"]
[null,null,"الاســم:"]
[null,null,"تـاريـخ الشـراء:",null,null,null,null,"تاريخ التسليم:"]
[null,null,"الـعــنــوان:"]
[]
[null,null,"بـنـاية:",null,null,"ط:",null,"هاتف:",null,null,null,"/"]
[null,null,"القـيـمة:",null,null,null,"واصل:",null,null,"باقي:"]
[null,null,"مــلاحـظـات:"]
[]
[]
[null,null,"الــــنــوع","العرض","الطول","العدد","الموديل","القماش الرئيسي","قماش الداير",null,"مـــــلاحــظــات"]
[]
[]
[]
[]
[]
[]
[]
[null,null,null,null,null,null,"لقد تم إستلام البضاعة",null,null,"الإسم :"]
[null,null,"البائع"]
[null,null,null,null,null,null,null,null,null,"التاريخ :"]
[null,null,null,null,null,null,"كاملة وبحالة جيدة"]
[null,null,"السائق",null,null,null,null,null,null,"الإمضاء :"]
[]
[null,null,"شركة حلباوي  للتجارة والصناعة"]
[null,null,"الجناح : 71/977000 - 01/836436",null,null,null,null,"دفتر توصيل"]
[null,null,"الـفـرع:","الجــنــاح",null,null,null,{"$f":"H632+1","v":25},"NO:"]
[null,null,"الاســم:"]
[null,null,"تـاريـخ الشـراء:",null,null,null,null,"تاريخ التسليم:"]
[null,null,"الـعــنــوان:"]
[]
[null,null,"بـنـاية:",null,null,"ط:",null,"هاتف:",null,null,null,"/"]
[null,null,"القـيـمة:",null,null,null,"واصل:",null,null,"باقي:"]
[null,null,"مــلاحـظـات:"]
[]
[]
[null,null,"الــــنــوع","العرض","الطول","العدد","الموديل","القماش الرئيسي","قماش الداير",null,"مـــــلاحــظــات"]
[]
[]
[]
[]
[]
[]
[]
[null,null,null,null,null,null,"لقد تم إستلام البضاعة",null,null,"الإسم :"]
[null,null,"البائع"]
[null,null,null,null,null,null,null,null,null,"التاريخ :"]
[null,null,null,null,null,null,"كاملة وبحالة جيدة"]
[null,null,"السائق",null,null,null,null,null,null,"الإمضاء :"]
[]
[null,null,"شركة حلباوي  للتجارة والصناعة"]
[null,null,"الجناح : 71/977000 - 01/836436",null,null,null,null,"دفتر توصيل"]
[null,null,"الـفـرع:","الجــنــاح",null,null,null,{"$f":"H658+1","v":26},"NO:"]
[null,null,"الاســم:"]
[null,null,"تـاريـخ الشـراء:",null,null,null,null,"تاريخ التسليم:"]
[null,null,"الـعــنــوان:"]
[]
[null,null,"بـنـاية:",null,null,"ط:",null,"هاتف:",null,null,null,"/"]
[null,null,"القـيـمة:",null,null,null,"واصل:",null,null,"باقي:"]
[null,null,"مــلاحـظـات:"]
[]
[]
[null,null,"الــــنــوع","العرض","الطول","العدد","الموديل","القماش الرئيسي","قماش الداير",null,"مـــــلاحــظــات"]
[]
[]
[]
[]
[]
[]
[]
[null,null,null,null,null,null,"لقد تم إستلام البضاعة",null,null,"الإسم :"]
[null,null,"البائع"]
[null,null,null,null,null,null,null,null,null,"التاريخ :"]
[null,null,null,null,null,null,"كاملة وبحالة جيدة"]
[null,null,"السائق",null,null,null,null,null,null,"الإمضاء :"]
[]
[null,null,"شركة حلباوي  للتجارة والصناعة"]
[null,null,"الجناح : 71/977000 - 01/836436",null,null,null,null,"دفتر توصيل"]
[null,null,"الـفـرع:","الجــنــاح",null,null,null,{"$f":"H684+1","v":27},"NO:"]
[null,null,"الاســم:"]
[null,null,"تـاريـخ الشـراء:",null,null,null,null,"تاريخ التسليم:"]
[null,null,"الـعــنــوان:"]
[]
[null,null,"بـنـاية:",null,null,"ط:",null,"هاتف:",null,null,null,"/"]
[null,null,"القـيـمة:",null,null,null,"واصل:",null,null,"باقي:"]
[null,null,"مــلاحـظـات:"]
[]
[]
[null,null,"الــــنــوع","العرض","الطول","العدد","الموديل","القماش الرئيسي","قماش الداير",null,"مـــــلاحــظــات"]
[]
[]
[]
[]
[]
[]
[]
[null,null,null,null,null,null,"لقد تم إستلام البضاعة",null,null,"الإسم :"]
[null,null,"البائع"]
[null,null,null,null,null,null,null,null,null,"التاريخ :"]
[null,null,null,null,null,null,"كاملة وبحالة جيدة"]
[null,null,"السائق",null,null,null,null,null,null,"الإمضاء :"]
[]
[null,null,"شركة حلباوي  للتجارة والصناعة"]
[null,null,"الجناح : 71/977000 - 01/836436",null,null,null,null,"دفتر توصيل"]
[null,null,"الـفـرع:","الجــنــاح",null,null,null,{"$f":"H710+1","v":28},"NO:"]
[null,null,"الاســم:"]
[null,null,"تـاريـخ الشـراء:",null,null,null,null,"تاريخ التسليم:"]
[null,null,"الـعــنــوان:"]
[]
[null,null,"بـنـاية:",null,null,"ط:",null,"هاتف:",null,null,null,"/"]
[null,null,"القـيـمة:",null,null,null,"واصل:",null,null,"باقي:"]
[null,null,"مــلاحـظـات:"]
[]
[]
[null,null,"الــــنــوع","العرض","الطول","العدد","الموديل","القماش الرئيسي","قماش الداير",null,"مـــــلاحــظــات"]
[]
[]
[]
[]
[]
[]
[]
[null,null,null,null,null,null,"لقد تم إستلام البضاعة",null,null,"الإسم :"]
[null,null,"البائع"]
[null,null,null,null,null,null,null,null,null,"التاريخ :"]
[null,null,null,null,null,null,"كاملة وبحالة جيدة"]
[null,null,"السائق",null,null,null,null,null,null,"الإمضاء :"]
[]
[null,null,"شركة حلباوي  للتجارة والصناعة"]
[null,null,"الجناح : 71/977000 - 01/836436",null,null,null,null,"دفتر توصيل"]
[null,null,"الـفـرع:","الجــنــاح",null,null,null,{"$f":"H736+1","v":29},"NO:"]
[null,null,"الاســم:"]
[null,null,"تـاريـخ الشـراء:",null,null,null,null,"تاريخ التسليم:"]
[null,null,"الـعــنــوان:"]
[]
[null,null,"بـنـاية:",null,null,"ط:",null,"هاتف:",null,null,null,"/"]
[null,null,"القـيـمة:",null,null,null,"واصل:",null,null,"باقي:"]
[null,null,"مــلاحـظـات:"]
[]
[]
[null,null,"الــــنــوع","العرض","الطول","العدد","الموديل","القماش الرئيسي","قماش الداير",null,"مـــــلاحــظــات"]
[]
[]
[]
[]
[]
[]
[]
[null,null,null,null,null,null,"لقد تم إستلام البضاعة",null,null,"الإسم :"]
[null,null,"البائع"]
[null,null,null,null,null,null,null,null,null,"التاريخ :"]
[null,null,null,null,null,null,"كاملة وبحالة جيدة"]
[null,null,"السائق",null,null,null,null,null,null,"الإمضاء :"]
[]
[null,null,"شركة حلباوي  للتجارة والصناعة"]
[null,null,"الجناح : 71/977000 - 01/836436",null,null,null,null,"دفتر توصيل"]
[null,null,"الـفـرع:","الجــنــاح",null,null,null,{"$f":"H762+1","v":30},"NO:"]
[null,null,"الاســم:"]
[null,null,"تـاريـخ الشـراء:",null,null,null,null,"تاريخ التسليم:"]
[null,null,"الـعــنــوان:"]
[]
[null,null,"بـنـاية:",null,null,"ط:",null,"هاتف:",null,null,null,"/"]
[null,null,"القـيـمة:",null,null,null,"واصل:",null,null,"باقي:"]
[null,null,"مــلاحـظـات:"]
[]
[]
[null,null,"الــــنــوع","العرض","الطول","العدد","الموديل","القماش الرئيسي","قماش الداير",null,"مـــــلاحــظــات"]
[]
[]
[]
[]
[]
[]
[]
[null,null,null,null,null,null,"لقد تم إستلام البضاعة",null,null,"الإسم :"]
[null,null,"البائع"]
[null,null,null,null,null,null,null,null,null,"التاريخ :"]
[null,null,null,null,null,null,"كاملة وبحالة جيدة"]
[null,null,"السائق",null,null,null,null,null,null,"الإمضاء :"]
[]
[null,null,"شركة حلباوي  للتجارة والصناعة"]
[null,null,"الجناح : 71/977000 - 01/836436",null,null,null,null,"دفتر توصيل"]
[null,null,"الـفـرع:","الجــنــاح",null,null,null,{"$f":"H788+1","v":31},"NO:"]
[null,null,"الاســم:"]
[null,null,"تـاريـخ الشـراء:",null,null,null,null,"تاريخ التسليم:"]
[null,null,"الـعــنــوان:"]
[]
[null,null,"بـنـاية:",null,null,"ط:",null,"هاتف:",null,null,null,"/"]
[null,null,"القـيـمة:",null,null,null,"واصل:",null,null,"باقي:"]
[null,null,"مــلاحـظـات:"]
[]
[]
[null,null,"الــــنــوع","العرض","الطول","العدد","الموديل","القماش الرئيسي","قماش الداير",null,"مـــــلاحــظــات"]
[]
[]
[]
[]
[]
[]
[]
[null,null,null,null,null,null,"لقد تم إستلام البضاعة",null,null,"الإسم :"]
[null,null,"البائع"]
[null,null,null,null,null,null,null,null,null,"التاريخ :"]
[null,null,null,null,null,null,"كاملة وبحالة جيدة"]
[null,null,"السائق",null,null,null,null,null,null,"الإمضاء :"]
[]
[null,null,"شركة حلباوي  للتجارة والصناعة"]
[null,null,"الجناح : 71/977000 - 01/836436",null,null,null,null,"دفتر توصيل"]
[null,null,"الـفـرع:","الجــنــاح",null,null,null,{"$f":"H814+1","v":32},"NO:"]
[null,null,"الاســم:"]
[null,null,"تـاريـخ الشـراء:",null,null,null,null,"تاريخ التسليم:"]
[null,null,"الـعــنــوان:"]
[]
[null,null,"بـنـاية:",null,null,"ط:",null,"هاتف:",null,null,null,"/"]
[null,null,"القـيـمة:",null,null,null,"واصل:",null,null,"باقي:"]
[null,null,"مــلاحـظـات:"]
[]
[]
[null,null,"الــــنــوع","العرض","الطول","العدد","الموديل","القماش الرئيسي","قماش الداير",null,"مـــــلاحــظــات"]
[]
[]
[]
[]
[]
[]
[]
[null,null,null,null,null,null,"لقد تم إستلام البضاعة",null,null,"الإسم :"]
[null,null,"البائع"]
[null,null,null,null,null,null,null,null,null,"التاريخ :"]
[null,null,null,null,null,null,"كاملة وبحالة جيدة"]
[null,null,"السائق",null,null,null,null,null,null,"الإمضاء :"]
[]
[null,null,"شركة حلباوي  للتجارة والصناعة"]
[null,null,"الجناح : 71/977000 - 01/836436",null,null,null,null,"دفتر توصيل"]
[null,null,"الـفـرع:","الجــنــاح",null,null,null,{"$f":"H840+1","v":33},"NO:"]
[null,null,"الاســم:"]
[null,null,"تـاريـخ الشـراء:",null,null,null,null,"تاريخ التسليم:"]
[null,null,"الـعــنــوان:"]
[]
[null,null,"بـنـاية:",null,null,"ط:",null,"هاتف:",null,null,null,"/"]
[null,null,"القـيـمة:",null,null,null,"واصل:",null,null,"باقي:"]
[null,null,"مــلاحـظـات:"]
[]
[]
[null,null,"الــــنــوع","العرض","الطول","العدد","الموديل","القماش الرئيسي","قماش الداير",null,"مـــــلاحــظــات"]
[]
[]
[]
[]
[]
[]
[]
[null,null,null,null,null,null,"لقد تم إستلام البضاعة",null,null,"الإسم :"]
[null,null,"البائع"]
[null,null,null,null,null,null,null,null,null,"التاريخ :"]
[null,null,null,null,null,null,"كاملة وبحالة جيدة"]
[null,null,"السائق",null,null,null,null,null,null,"الإمضاء :"]
[]
[null,null,"شركة حلباوي  للتجارة والصناعة"]
[null,null,"الجناح : 71/977000 - 01/836436",null,null,null,null,"دفتر توصيل"]
[null,null,"الـفـرع:","الجــنــاح",null,null,null,{"$f":"H866+1","v":34},"NO:"]
[null,null,"الاســم:"]
[null,null,"تـاريـخ الشـراء:",null,null,null,null,"تاريخ التسليم:"]
[null,null,"الـعــنــوان:"]
[]
[null,null,"بـنـاية:",null,null,"ط:",null,"هاتف:",null,null,null,"/"]
[null,null,"القـيـمة:",null,null,null,"واصل:",null,null,"باقي:"]
[null,null,"مــلاحـظـات:"]
[]
[]
[null,null,"الــــنــوع","العرض","الطول","العدد","الموديل","القماش الرئيسي","قماش الداير",null,"مـــــلاحــظــات"]
[]
[]
[]
[]
[]
[]
[]
[null,null,null,null,null,null,"لقد تم إستلام البضاعة",null,null,"الإسم :"]
[null,null,"البائع"]
[null,null,null,null,null,null,null,null,null,"التاريخ :"]
[null,null,null,null,null,null,"كاملة وبحالة جيدة"]
[null,null,"السائق",null,null,null,null,null,null,"الإمضاء :"]
[]
[null,null,"شركة حلباوي  للتجارة والصناعة"]
[null,null,"الجناح : 71/977000 - 01/836436",null,null,null,null,"دفتر توصيل"]
[null,null,"الـفـرع:","الجــنــاح",null,null,null,{"$f":"H892+1","v":35},"NO:"]
[null,null,"الاســم:"]
[null,null,"تـاريـخ الشـراء:",null,null,null,null,"تاريخ التسليم:"]
[null,null,"الـعــنــوان:"]
[]
[null,null,"بـنـاية:",null,null,"ط:",null,"هاتف:",null,null,null,"/"]
[null,null,"القـيـمة:",null,null,null,"واصل:",null,null,"باقي:"]
[null,null,"مــلاحـظـات:"]
[]
[]
[null,null,"الــــنــوع","العرض","الطول","العدد","الموديل","القماش الرئيسي","قماش الداير",null,"مـــــلاحــظــات"]
[]
[]
[]
[]
[]
[]
[]
[null,null,null,null,null,null,"لقد تم إستلام البضاعة",null,null,"الإسم :"]
[null,null,"البائع"]
[null,null,null,null,null,null,null,null,null,"التاريخ :"]
[null,null,null,null,null,null,"كاملة وبحالة جيدة"]
[null,null,"السائق",null,null,null,null,null,null,"الإمضاء :"]
[]
[null,null,"شركة حلباوي  للتجارة والصناعة"]
[null,null,"الجناح : 71/977000 - 01/836436",null,null,null,null,"دفتر توصيل"]
[null,null,"الـفـرع:","الجــنــاح",null,null,null,{"$f":"H918+1","v":36},"NO:"]
[null,null,"الاســم:"]
[null,null,"تـاريـخ الشـراء:",null,null,null,null,"تاريخ التسليم:"]
[null,null,"الـعــنــوان:"]
[]
[null,null,"بـنـاية:",null,null,"ط:",null,"هاتف:",null,null,null,"/"]
[null,null,"القـيـمة:",null,null,null,"واصل:",null,null,"باقي:"]
[null,null,"مــلاحـظـات:"]
[]
[]
[null,null,"الــــنــوع","العرض","الطول","العدد","الموديل","القماش الرئيسي","قماش الداير",null,"مـــــلاحــظــات"]
[]
[]
[]
[]
[]
[]
[]
[null,null,null,null,null,null,"لقد تم إستلام البضاعة",null,null,"الإسم :"]
[null,null,"البائع"]
[null,null,null,null,null,null,null,null,null,"التاريخ :"]
[null,null,null,null,null,null,"كاملة وبحالة جيدة"]
[null,null,"السائق",null,null,null,null,null,null,"الإمضاء :"]
[]
[null,null,"شركة حلباوي  للتجارة والصناعة"]
[null,null,"الجناح : 71/977000 - 01/836436",null,null,null,null,"دفتر توصيل"]
[null,null,"الـفـرع:","الجــنــاح",null,null,null,{"$f":"H944+1","v":37},"NO:"]
[null,null,"الاســم:"]
[null,null,"تـاريـخ الشـراء:",null,null,null,null,"تاريخ التسليم:"]
[null,null,"الـعــنــوان:"]
[]
[null,null,"بـنـاية:",null,null,"ط:",null,"هاتف:",null,null,null,"/"]
[null,null,"القـيـمة:",null,null,null,"واصل:",null,null,"باقي:"]
[null,null,"مــلاحـظـات:"]
[]
[]
[null,null,"الــــنــوع","العرض","الطول","العدد","الموديل","القماش الرئيسي","قماش الداير",null,"مـــــلاحــظــات"]
[]
[]
[]
[]
[]
[]
[]
[null,null,null,null,null,null,"لقد تم إستلام البضاعة",null,null,"الإسم :"]
[null,null,"البائع"]
[null,null,null,null,null,null,null,null,null,"التاريخ :"]
[null,null,null,null,null,null,"كاملة وبحالة جيدة"]
[null,null,"السائق",null,null,null,null,null,null,"الإمضاء :"]
[]
[null,null,"شركة حلباوي  للتجارة والصناعة"]
[null,null,"الجناح : 71/977000 - 01/836436",null,null,null,null,"دفتر توصيل"]
[null,null,"الـفـرع:","الجــنــاح",null,null,null,{"$f":"H970+1","v":38},"NO:"]
[null,null,"الاســم:"]
[null,null,"تـاريـخ الشـراء:",null,null,null,null,"تاريخ التسليم:"]
[null,null,"الـعــنــوان:"]
[]
[null,null,"بـنـاية:",null,null,"ط:",null,"هاتف:",null,null,null,"/"]
[null,null,"القـيـمة:",null,null,null,"واصل:",null,null,"باقي:"]
[null,null,"مــلاحـظـات:"]
[]
[]
[null,null,"الــــنــوع","العرض","الطول","العدد","الموديل","القماش الرئيسي","قماش الداير",null,"مـــــلاحــظــات"]
[]
[]
[]
[]
[]
[]
[]
[null,null,null,null,null,null,"لقد تم إستلام البضاعة",null,null,"الإسم :"]
[null,null,"البائع"]
[null,null,null,null,null,null,null,null,null,"التاريخ :"]
[null,null,null,null,null,null,"كاملة وبحالة جيدة"]
[null,null,"السائق",null,null,null,null,null,null,"الإمضاء :"]
[]
[null,null,"شركة حلباوي  للتجارة والصناعة"]
[null,null,"الجناح : 71/977000 - 01/836436",null,null,null,null,"دفتر توصيل"]
[null,null,"الـفـرع:","الجــنــاح",null,null,null,{"$f":"H996+1","v":39},"NO:"]
[null,null,"الاســم:"]
[null,null,"تـاريـخ الشـراء:",null,null,null,null,"تاريخ التسليم:"]
[null,null,"الـعــنــوان:"]
[]
[null,null,"بـنـاية:",null,null,"ط:",null,"هاتف:",null,null,null,"/"]
[null,null,"القـيـمة:",null,null,null,"واصل:",null,null,"باقي:"]
[null,null,"مــلاحـظـات:"]
[]
[]
[null,null,"الــــنــوع","العرض","الطول","العدد","الموديل","القماش الرئيسي","قماش الداير",null,"مـــــلاحــظــات"]
[]
[]
[]
[]
[]
[]
[]
[null,null,null,null,null,null,"لقد تم إستلام البضاعة",null,null,"الإسم :"]
[null,null,"البائع"]
[null,null,null,null,null,null,null,null,null,"التاريخ :"]
[null,null,null,null,null,null,"كاملة وبحالة جيدة"]
[null,null,"السائق",null,null,null,null,null,null,"الإمضاء :"]
[]
[null,null,"شركة حلباوي  للتجارة والصناعة"]
[null,null,"الجناح : 71/977000 - 01/836436",null,null,null,null,"دفتر توصيل"]
[null,null,"الـفـرع:","الجــنــاح",null,null,null,{"$f":"H1022+1","v":40},"NO:"]
[null,null,"الاســم:"]
[null,null,"تـاريـخ الشـراء:",null,null,null,null,"تاريخ التسليم:"]
[null,null,"الـعــنــوان:"]
[]
[null,null,"بـنـاية:",null,null,"ط:",null,"هاتف:",null,null,null,"/"]
[null,null,"القـيـمة:",null,null,null,"واصل:",null,null,"باقي:"]
[null,null,"مــلاحـظـات:"]
[]
[]
[null,null,"الــــنــوع","العرض","الطول","العدد","الموديل","القماش الرئيسي","قماش الداير",null,"مـــــلاحــظــات"]
[]
[]
[]
[]
[]
[]
[]
[null,null,null,null,null,null,"لقد تم إستلام البضاعة",null,null,"الإسم :"]
[null,null,"البائع"]
[null,null,null,null,null,null,null,null,null,"التاريخ :"]
[null,null,null,null,null,null,"كاملة وبحالة جيدة"]
[null,null,"السائق",null,null,null,null,null,null,"الإمضاء :"]
[]
[null,null,"شركة حلباوي  للتجارة والصناعة"]
[null,null,"الجناح : 71/977000 - 01/836436",null,null,null,null,"دفتر توصيل"]
[null,null,"الـفـرع:","الجــنــاح",null,null,null,{"$f":"H1048+1","v":41},"NO:"]
[null,null,"الاســم:"]
[null,null,"تـاريـخ الشـراء:",null,null,null,null,"تاريخ التسليم:"]
[null,null,"الـعــنــوان:"]
[]
[null,null,"بـنـاية:",null,null,"ط:",null,"هاتف:",null,null,null,"/"]
[null,null,"القـيـمة:",null,null,null,"واصل:",null,null,"باقي:"]
[null,null,"مــلاحـظـات:"]
[]
[]
[null,null,"الــــنــوع","العرض","الطول","العدد","الموديل","القماش الرئيسي","قماش الداير",null,"مـــــلاحــظــات"]
[]
[]
[]
[]
[]
[]
[]
[null,null,null,null,null,null,"لقد تم إستلام البضاعة",null,null,"الإسم :"]
[null,null,"البائع"]
[null,null,null,null,null,null,null,null,null,"التاريخ :"]
[null,null,null,null,null,null,"كاملة وبحالة جيدة"]
[null,null,"السائق",null,null,null,null,null,null,"الإمضاء :"]
[]
[null,null,"شركة حلباوي  للتجارة والصناعة"]
[null,null,"الجناح : 71/977000 - 01/836436",null,null,null,null,"دفتر توصيل"]
[null,null,"الـفـرع:","الجــنــاح",null,null,null,{"$f":"H1074+1","v":42},"NO:"]
[null,null,"الاســم:"]
[null,null,"تـاريـخ الشـراء:",null,null,null,null,"تاريخ التسليم:"]
[null,null,"الـعــنــوان:"]
[]
[null,null,"بـنـاية:",null,null,"ط:",null,"هاتف:",null,null,null,"/"]
[null,null,"القـيـمة:",null,null,null,"واصل:",null,null,"باقي:"]
[null,null,"مــلاحـظـات:"]
[]
[]
[null,null,"الــــنــوع","العرض","الطول","العدد","الموديل","القماش الرئيسي","قماش الداير",null,"مـــــلاحــظــات"]
[]
[]
[]
[]
[]
[]
[]
[null,null,null,null,null,null,"لقد تم إستلام البضاعة",null,null,"الإسم :"]
[null,null,"البائع"]
[null,null,null,null,null,null,null,null,null,"التاريخ :"]
[null,null,null,null,null,null,"كاملة وبحالة جيدة"]
[null,null,"السائق",null,null,null,null,null,null,"الإمضاء :"]
[]
[null,null,"شركة حلباوي  للتجارة والصناعة"]
[null,null,"الجناح : 71/977000 - 01/836436",null,null,null,null,"دفتر توصيل"]
[null,null,"الـفـرع:","الجــنــاح",null,null,null,{"$f":"H1100+1","v":43},"NO:"]
[null,null,"الاســم:"]
[null,null,"تـاريـخ الشـراء:",null,null,null,null,"تاريخ التسليم:"]
[null,null,"الـعــنــوان:"]
[]
[null,null,"بـنـاية:",null,null,"ط:",null,"هاتف:",null,null,null,"/"]
[null,null,"القـيـمة:",null,null,null,"واصل:",null,null,"باقي:"]
[null,null,"مــلاحـظـات:"]
[]
[]
[null,null,"الــــنــوع","العرض","الطول","العدد","الموديل","القماش الرئيسي","قماش الداير",null,"مـــــلاحــظــات"]
[]
[]
[]
[]
[]
[]
[]
[null,null,null,null,null,null,"لقد تم إستلام البضاعة",null,null,"الإسم :"]
[null,null,"البائع"]
[null,null,null,null,null,null,null,null,null,"التاريخ :"]
[null,null,null,null,null,null,"كاملة وبحالة جيدة"]
[null,null,"السائق",null,null,null,null,null,null,"الإمضاء :"]
[]
[null,null,"شركة حلباوي  للتجارة والصناعة"]
[null,null,"الجناح : 71/977000 - 01/836436",null,null,null,null,"دفتر توصيل"]
[null,null,"الـفـرع:","الجــنــاح",null,null,null,{"$f":"H1126+1","v":44},"NO:"]
[null,null,"الاســم:"]
[null,null,"تـاريـخ الشـراء:",null,null,null,null,"تاريخ التسليم:"]
[null,null,"الـعــنــوان:"]
[]
[null,null,"بـنـاية:",null,null,"ط:",null,"هاتف:",null,null,null,"/"]
[null,null,"القـيـمة:",null,null,null,"واصل:",null,null,"باقي:"]
[null,null,"مــلاحـظـات:"]
[]
[]
[null,null,"الــــنــوع","العرض","الطول","العدد","الموديل","القماش الرئيسي","قماش الداير",null,"مـــــلاحــظــات"]
[]
[]
[]
[]
[]
[]
[]
[null,null,null,null,null,null,"لقد تم إستلام البضاعة",null,null,"الإسم :"]
[null,null,"البائع"]
[null,null,null,null,null,null,null,null,null,"التاريخ :"]
[null,null,null,null,null,null,"كاملة وبحالة جيدة"]
[null,null,"السائق",null,null,null,null,null,null,"الإمضاء :"]
[]
[null,null,"شركة حلباوي  للتجارة والصناعة"]
[null,null,"الجناح : 71/977000 - 01/836436",null,null,null,null,"دفتر توصيل"]
[null,null,"الـفـرع:","الجــنــاح",null,null,null,{"$f":"H1152+1","v":45},"NO:"]
[null,null,"الاســم:"]
[null,null,"تـاريـخ الشـراء:",null,null,null,null,"تاريخ التسليم:"]
[null,null,"الـعــنــوان:"]
[]
[null,null,"بـنـاية:",null,null,"ط:",null,"هاتف:",null,null,null,"/"]
[null,null,"القـيـمة:",null,null,null,"واصل:",null,null,"باقي:"]
[null,null,"مــلاحـظـات:"]
[]
[]
[null,null,"الــــنــوع","العرض","الطول","العدد","الموديل","القماش الرئيسي","قماش الداير",null,"مـــــلاحــظــات"]
[]
[]
[]
[]
[]
[]
[]
[null,null,null,null,null,null,"لقد تم إستلام البضاعة",null,null,"الإسم :"]
[null,null,"البائع"]
[null,null,null,null,null,null,null,null,null,"التاريخ :"]
[null,null,null,null,null,null,"كاملة وبحالة جيدة"]
[null,null,"السائق",null,null,null,null,null,null,"الإمضاء :"]
[]
[null,null,"شركة حلباوي  للتجارة والصناعة"]
[null,null,"الجناح : 71/977000 - 01/836436",null,null,null,null,"دفتر توصيل"]
[null,null,"الـفـرع:","الجــنــاح",null,null,null,{"$f":"H1178+1","v":46},"NO:"]
[null,null,"الاســم:"]
[null,null,"تـاريـخ الشـراء:",null,null,null,null,"تاريخ التسليم:"]
[null,null,"الـعــنــوان:"]
[]
[null,null,"بـنـاية:",null,null,"ط:",null,"هاتف:",null,null,null,"/"]
[null,null,"القـيـمة:",null,null,null,"واصل:",null,null,"باقي:"]
[null,null,"مــلاحـظـات:"]
[]
[]
[null,null,"الــــنــوع","العرض","الطول","العدد","الموديل","القماش الرئيسي","قماش الداير",null,"مـــــلاحــظــات"]
[]
[]
[]
[]
[]
[]
[]
[null,null,null,null,null,null,"لقد تم إستلام البضاعة",null,null,"الإسم :"]
[null,null,"البائع"]
[null,null,null,null,null,null,null,null,null,"التاريخ :"]
[null,null,null,null,null,null,"كاملة وبحالة جيدة"]
[null,null,"السائق",null,null,null,null,null,null,"الإمضاء :"]
[]
[null,null,"شركة حلباوي  للتجارة والصناعة"]
[null,null,"الجناح : 71/977000 - 01/836436",null,null,null,null,"دفتر توصيل"]
[null,null,"الـفـرع:","الجــنــاح",null,null,null,{"$f":"H1204+1","v":47},"NO:"]
[null,null,"الاســم:"]
[null,null,"تـاريـخ الشـراء:",null,null,null,null,"تاريخ التسليم:"]
[null,null,"الـعــنــوان:"]
[]
[null,null,"بـنـاية:",null,null,"ط:",null,"هاتف:",null,null,null,"/"]
[null,null,"القـيـمة:",null,null,null,"واصل:",null,null,"باقي:"]
[null,null,"مــلاحـظـات:"]
[]
[]
[null,null,"الــــنــوع","العرض","الطول","العدد","الموديل","القماش الرئيسي","قماش الداير",null,"مـــــلاحــظــات"]
[]
[]
[]
[]
[]
[]
[]
[null,null,null,null,null,null,"لقد تم إستلام البضاعة",null,null,"الإسم :"]
[null,null,"البائع"]
[null,null,null,null,null,null,null,null,null,"التاريخ :"]
[null,null,null,null,null,null,"كاملة وبحالة جيدة"]
[null,null,"السائق",null,null,null,null,null,null,"الإمضاء :"]
[]
[null,null,"شركة حلباوي  للتجارة والصناعة"]
[null,null,"الجناح : 71/977000 - 01/836436",null,null,null,null,"دفتر توصيل"]
[null,null,"الـفـرع:","الجــنــاح",null,null,null,{"$f":"H1230+1","v":48},"NO:"]
[null,null,"الاســم:"]
[null,null,"تـاريـخ الشـراء:",null,null,null,null,"تاريخ التسليم:"]
[null,null,"الـعــنــوان:"]
[]
[null,null,"بـنـاية:",null,null,"ط:",null,"هاتف:",null,null,null,"/"]
[null,null,"القـيـمة:",null,null,null,"واصل:",null,null,"باقي:"]
[null,null,"مــلاحـظـات:"]
[]
[]
[null,null,"الــــنــوع","العرض","الطول","العدد","الموديل","القماش الرئيسي","قماش الداير",null,"مـــــلاحــظــات"]
[]
[]
[]
[]
[]
[]
[]
[null,null,null,null,null,null,"لقد تم إستلام البضاعة",null,null,"الإسم :"]
[null,null,"البائع"]
[null,null,null,null,null,null,null,null,null,"التاريخ :"]
[null,null,null,null,null,null,"كاملة وبحالة جيدة"]
[null,null,"السائق",null,null,null,null,null,null,"الإمضاء :"]
[]
[null,null,"شركة حلباوي  للتجارة والصناعة"]
[null,null,"الجناح : 71/977000 - 01/836436",null,null,null,null,"دفتر توصيل"]
[null,null,"الـفـرع:","الجــنــاح",null,null,null,{"$f":"H1256+1","v":49},"NO:"]
[null,null,"الاســم:"]
[null,null,"تـاريـخ الشـراء:",null,null,null,null,"تاريخ التسليم:"]
[null,null,"الـعــنــوان:"]
[]
[null,null,"بـنـاية:",null,null,"ط:",null,"هاتف:",null,null,null,"/"]
[null,null,"القـيـمة:",null,null,null,"واصل:",null,null,"باقي:"]
[null,null,"مــلاحـظـات:"]
[]
[]
[null,null,"الــــنــوع","العرض","الطول","العدد","الموديل","القماش الرئيسي","قماش الداير",null,"مـــــلاحــظــات"]
[]
[]
[]
[]
[]
[]
[]
[null,null,null,null,null,null,"لقد تم إستلام البضاعة",null,null,"الإسم :"]
[null,null,"البائع"]
[null,null,null,null,null,null,null,null,null,"التاريخ :"]
[null,null,null,null,null,null,"كاملة وبحالة جيدة",null,null,null,null,null,null,null,null,null,null,null,null,null,null,null,null,null,"صغيرة OTELLO"]
[null,null,"السائق",null,null,null,null,null,null,"الإمضاء :",null,null,null,null,null,null,null,null,null,null,null,null,null,null,"تكاية"]

{"sheet":"Sheet2","index":1,"n_rows":0,"n_cols":0,"rows_kept":0,"cut":false,"hidden":false,"merged":[]}